[Event "Charlotte Spring IM Invitational 2021"]
[Site "Charlotte"]
[Date "2021.03.18"]
[Round "2.1"]
[White "Matros, Alexander"]
[Black "Vijay, Keerthi K."]
[Result "1/2-1/2"]
[ECO "D13"]
[WhiteElo "2380"]
[BlackElo "2260"]
[Annotator "NA"]
[PlyCount "63"]
[EventDate "2021.03.17"]
[EventType "tourn"]
[EventCountry "USA"]
[SourceTitle "playchess.com"]
[Source "ChessBase"]
[SourceQuality "1"]
[TimeControl "5400+30"]

1. d4 {[%emt 1:30:30]} d5 2. c4 {[%emt 0:00:30]} c6 {[%emt 1:31:00]} 3. cxd5 {[%emt 0:00:30]} cxd5 {[%emt 0:00:30]} 4. Bf4 {[%emt 0:00:30]} Nf6 {[%emt 0:00:30]} 5. e3 {[%emt 0:00:30]} e6 {[%emt 0:00:30]} 6. Nc3 {[%emt 0:00:30]} Bd6 {[%emt 0:00:30]} 7. Bg3 {[%emt 0:00:30]} Nc6 {[%emt 0:00:30]} 8. Nf3 {[%emt 0:00:30]} Ne4 {[%emt 0:00:30]} 9. Bb5 {[%emt 0:00:30]} Bb4 {[%emt 0:00:30]} 10. O-O {[%emt 0:00:30]} Bxc3 {[%emt 0:00:30]} 11. bxc3 {[%emt 0:00:30]} O-O {[%emt 0:00:30]} 12. Qb3 {[%emt 0:00:30]} Na5 {[%emt 0:00:30]} 13. Qb4 {[%emt 0:00:30]} Qb6 {[%emt 0:00:30]} 14. Rfc1 {[%emt 0:00:30]} f6 {[%emt 0:00:30]} 15. Rab1 {[%emt 0:00:30]} Nxg3 {[%emt 0:00:30]} 16. hxg3 {[%emt 0:00:30]} a6 {[%emt 0:00:30]} 17. Bd3 {[%emt 0:00:30]} Qxb4 {[%emt 0:00:30]} 18. cxb4 {[%emt 0:00:30]} Nc6 {[%emt 0:00:30]} 19. a4 {[%emt 0:00:30]} a5 {[%emt 0:00:30]} 20. b5 {[%emt 0:00:30]} Nb4 {[%emt 0:00:30]} 21. Rb3 {[%emt 0:00:30]} Rf7 {[%emt 0:00:30]} 22. Bb1 {[%emt 0:00:30]} b6 {[%emt 0:00:30]} 23. Rbc3 {[%emt 0:00:30]} Bb7 {[%emt 0:00:30]} 24. g4 {[%emt 0:00:30]} g5 {[%emt 0:00:30]} 25. Rc7 {[%emt 0:00:30]} Raf8 {[%emt 0:00:30]} 26. Kf1 {[%emt 0:00:30]} Kg7 {[%emt 0:00:30]} 27. Ke2 {[%emt 0:00:30]} h6 {[%emt 0:00:30]} 28. Nd2 {[%emt 0:00:30]} Rxc7 {[%emt 0:00:30]} 29. Rxc7+ Rf7 {[%emt 0:00:30]} 30. Rc1 {[%emt 0:01:00]} Rf8 {[%emt 0:00:30]} 31. Rc7+ {[%emt 0:00:30]} Rf7 {[%emt 0:00:30]} 32. Rc1 {[%emt 0:00:30]} 1/2-1/2

[Event "Charlotte Spring IM Invitational 2021"]
[Site "Charlotte"]
[Date "2021.03.18"]
[Round "2.2"]
[White "Griffith, Kyron"]
[Black "Canty, James"]
[Result "1-0"]
[ECO "A68"]
[WhiteElo "2372"]
[BlackElo "2221"]
[Annotator "NA"]
[PlyCount "65"]
[EventDate "2021.03.17"]
[EventType "tourn"]
[EventCountry "USA"]
[SourceTitle "playchess.com"]
[Source "ChessBase"]
[SourceQuality "1"]
[TimeControl "5400+30"]

1. d4 {[%emt 0:03:48]} Nf6 {[%emt 0:00:00]} 2. c4 {[%emt 0:00:07]} g6 {[%emt 0:00:00]} 3. Nc3 {[%emt 0:00:04]} Bg7 {[%emt 0:00:00]} 4. e4 {[%emt 0:00:04]} d6 {[%emt 0:00:00]} 5. f4 {[%emt 0:00:05]} O-O {[%emt 0:00:00]} 6. Nf3 {[%emt 0:00:04]} c5 {[%emt 0:00:03]} 7. d5 {[%emt 0:00:04]} e6 {[%emt 0:00:06]} 8. Be2 {[%emt 0:00:05]} exd5 {[%emt 0:00:08]} 9. cxd5 {[%emt 0:00:16]} b5 {[%emt 0:04:05]} 10. e5 {[%emt 0:04:26]} dxe5 {[%emt 0:00:32]} 11. fxe5 {[%emt 0:00:05]} Ng4 {[%emt 0:01:02]} 12. Bxb5 {[%emt 0:07:02]} Nxe5 {[%emt 0:00:54]} 13. O-O {[%emt 0:02:21]} Qb6 {[%emt 0:12:45]} 14. Nxe5 {[%emt 0:16:54]} Bxe5 {[%emt 0:00:03]} 15. Bh6 {[%emt 0:00:13]} Rd8 {[%emt 0:15:40]} 16. Qf3 {[%emt 0:03:19]} f5 {[%emt 0:03:38]} 17. Rae1 {[%emt 0:02:19]} Bd4+ {[%emt 0:04:09]} 18. Kh1 {[%emt 0:00:32]} Nd7 {[%emt 0:00:16]} 19. Bc6 {[%emt 0:14:04]} Rb8 {[%emt 0:07:37]} 20. Bf4 {[%emt 0:08:51]} Ba6 {[%emt 0:00:29]} 21. Bxd7 {[%emt 0:01:53]} Rxd7 {[%emt 0:01:16]} 22. Re6 {[%emt 0:00:45]} Bxf1 {[%emt 0:06:53]} 23. Rxb6 {[%emt 0:00:35]} Rxb6 {[%emt 0:00:04]} 24. Qxf1 {[%emt 0:00:04]} Rxb2 {[%emt 0:00:25]} 25. Qe1 {[%emt 0:02:02]} Rdb7 {[%emt 0:09:01]} 26. h4 {[%emt 0:02:32]} Rc2 {[%emt 0:00:48]} 27. Qe8+ {[%emt 0:05:27]} Kg7 {[%emt 0:00:07]} 28. h5 {[%emt 0:00:34]} gxh5 {[%emt 0:04:54]} 29. Be5+ {[%emt 0:00:35]} Bxe5 {[%emt 0:02:24]} 30. Qxe5+ {[%emt 0:00:05]} Kg6 {[%emt 0:27:41]} 31. d6 {[%emt 0:00:13]} Rd2 {[%emt 0:00:00]} 32. Qe6+ {[%emt 0:00:42]} Kg7 {[%emt 0:00:00]} 33. Nd5 {[%emt 0:00:16]} 1-0

[Event "Charlotte Spring IM Invitational 2021"]
[Site "Charlotte"]
[Date "2021.03.19"]
[Round "3.1"]
[White "Chasin, Nico"]
[Black "Matros, Alexander"]
[Result "0-1"]
[ECO "C41"]
[WhiteElo "2293"]
[BlackElo "2380"]
[Annotator "ChessBase"]
[PlyCount "60"]
[EventDate "2021.03.17"]
[EventType "tourn"]
[EventCountry "USA"]
[SourceTitle "playchess.com"]
[Source "ChessBase"]
[SourceQuality "1"]
[TimeControl "5400+30"]

1. d4 {[%emt 0:03:01]} d6 {[%emt 0:00:00]} 2. e4 {[%emt 0:01:12]} Nf6 {[%emt 0:00:05]} 3. Nc3 {[%emt 0:00:05]} e5 {[%emt 0:00:08]} 4. Nf3 {[%emt 0:00:12]} Nbd7 {[%emt 0:00:08]} 5. g4 {[%emt 0:00:04]} Nxg4 {[%emt 0:00:32]} 6. Rg1 {[%emt 0:00:50]} Ngf6 {[%emt 0:00:54]} 7. Be3 {[%emt 0:01:48]} c6 {[%emt 0:00:52]} 8. Qd2 {[%emt 0:03:55]} b5 {[%emt 0:00:54]} 9. Bd3 {[%emt 0:01:37]} g6 {[%emt 0:11:20]} 10. a4 {[%emt 0:02:44]} b4 {[%emt 0:12:25]} 11. Ne2 {[%emt 0:00:35]} exd4 {[%emt 0:00:16]} 12. Nexd4 {[%emt 0:02:05]} c5 {[%emt 0:00:27]} 13. Ne2 {[%emt 0:02:49]} Bg7 {[%emt 0:01:26]} 14. Bh6 {[%emt 0:04:10]} Bxh6 {[%emt 0:03:58]} 15. Qxh6 {[%emt 0:00:49]} Qe7 {[%emt 0:00:04]} 16. O-O-O {[%emt 0:18:25]} Bb7 {[%emt 0:01:17]} 17. Nd2 {[%emt 0:07:19]} O-O-O {[%emt 0:06:46]} 18. Nc4 {[%emt 0:01:17]} Nb6 {[%emt 0:01:43]} 19. Na5 {[%emt 0:03:06]} Nxa4 {[%emt 0:14:12]} 20. Qh3+ {[%emt 0:04:21]} Kc7 {[%emt 0:42:33]} 21. Nxb7 {[%emt 0:01:37]} Kxb7 {[%emt 0:00:00]} 22. Qg2 {[%emt 0:00:50]} Qe5 {[%emt 0:00:00]} 23. Kd2 {[%emt 0:02:01]} d5 {[%emt 0:00:00]} 24. exd5 {[%emt 0:01:40]} Qxd5 {[%emt 0:00:00]} 25. Qxd5+ {[%emt 0:01:11]} Rxd5 {[%emt 0:00:00]} 26. Kc1 {[%emt 0:00:12]} Nb6 {[%emt 0:00:00]} 27. Ng3 {[%emt 0:00:48]} Re8 {[%emt 0:00:00]} 28. f4 {[%emt 0:01:02]} Kc7 {[%emt 0:00:00]} 29. f5 {[%emt 0:02:39]} g5 {[%emt 0:00:00]} 30. c3 {[%emt 0:01:19]} Re3 {[%emt 0:00:00]} 0-1

[Event "Charlotte Spring IM Invitational 2021"]
[Site "Charlotte"]
[Date "2021.03.19"]
[Round "4.2"]
[White "Wang, Tianqi"]
[Black "Martin Del Campo C., Roberto"]
[Result "1/2-1/2"]
[ECO "B23"]
[WhiteElo "2305"]
[BlackElo "2295"]
[Annotator "NA RC"]
[PlyCount "81"]
[EventDate "2021.03.17"]
[EventType "tourn"]
[EventCountry "USA"]
[SourceTitle "playchess.com"]
[Source "ChessBase"]
[SourceQuality "1"]
[TimeControl "5400+30"]

1. e4 {[%emt 0:00:00]} c5 {[%emt 0:00:00]} 2. Nc3 {[%emt 0:00:00]} e6 {[%emt 0:00:14]} 3. f4 {[%emt 0:00:00]} d5 {[%emt 0:00:21]} 4. Nf3 {[%emt 0:00:00]} Nc6 {[%emt 0:01:58]} 5. Bb5 {[%emt 0:00:10]} Nge7 {[%emt 0:00:34]} 6. Ne5 {[%emt 0:01:08]} Qd6 {[%emt 0:00:56]} 7. d3 {[%emt 0:17:24]} a6 {[%emt 0:04:50]} 8. Bxc6+ {[%emt 0:01:28]} Nxc6 {[%emt 0:00:04]} 9. Nxc6 {[%emt 0:01:49]} Qxc6 {[%emt 0:01:05]} 10. exd5 {[%emt 0:03:32]} exd5 {[%emt 0:00:09]} 11. Qe2+ {[%emt 0:00:17]} Be7 {[%emt 0:01:41]} 12. O-O {[%emt 0:08:51]} d4 {[%emt 0:01:23]} 13. Re1 {[%emt 0:01:50]} O-O {[%emt 0:00:51]} 14. Qxe7 {[%emt 0:01:22]} dxc3 {[%emt 0:00:10]} 15. bxc3 {[%emt 0:00:36]} Be6 {[%emt 0:10:57]} 16. Be3 {[%emt 0:04:15]} b6 {[%emt 0:08:04]} 17. Qg5 {[%emt 0:01:40]} Rad8 {[%emt 0:16:24]} 18. c4 {[%emt 0:02:17]} Bc8 {[%emt 0:00:59]} 19. Re2 {[%emt 0:11:25]} Rd6 {[%emt 0:18:35]} 20. Rae1 {[%emt 0:05:31]} f5 {[%emt 0:10:41]} 21. Bc1 {[%emt 0:04:48]} Rg6 {[%emt 0:00:43]} 22. Qh4 {[%emt 0:06:15]} Bb7 {[%emt 0:00:10]} 23. Qh3 {[%emt 0:00:17]} Qf6 {[%emt 0:04:17]} 24. Qe3 {[%emt 0:02:41]} Qc6 {[%emt 0:00:31]} 25. Qd2 {[%emt 0:01:04]} Qf6 {[%emt 0:01:40]} 26. Rf2 {[%emt 0:01:05]} h5 {[%emt 0:03:53]} 27. Re5 {[%emt 0:01:50]} h4 {[%emt 0:01:55]} 28. h3 {[%emt 0:00:30]} Rg3 {[%emt 0:00:39]} 29. Bb2 {[%emt 0:00:57]} Qc6 {[%emt 0:00:44]} 30. Re7 {[%emt 0:02:30]} Rf7 {[%emt 0:01:19]} 31. Rxf7 {[%emt 0:00:28]} Kxf7 {[%emt 0:00:03]} 32. Kf1 {[%emt 0:00:07]} b5 {[%emt 0:04:01]} 33. cxb5 {[%emt 0:01:03]} axb5 {[%emt 0:00:03]} 34. Qe2 {[%emt 0:01:00]} Kf8 {[%emt 0:02:50]} 35. Be5 {[%emt 0:15:12]} b4 {[%emt 0:01:41]} 36. Rf3 {[%emt 0:01:41]} Rg6 {[%emt 0:00:34]} 37. Rf2 {[%emt 0:00:34]} Qd5 {[%emt 0:00:36]} 38. Qh5 {[%emt 0:01:14]} Rxg2 {[%emt 0:00:25]} 39. Bd6+ {[%emt 0:00:58]} Kg8 {[%emt 0:00:44]} 40. Qe8+ {[%emt 0:00:06]} Kh7 {[%emt 0:00:03]} 41. Qh5+ {[%emt 0:00:47]} 1/2-1/2

[Event "Charlotte Spring IM Invitational 2021"]
[Site "Charlotte"]
[Date "2021.03.19"]
[Round "4.3"]
[White "Adamson, Robby"]
[Black "Canty, James"]
[Result "1-0"]
[ECO "B22"]
[WhiteElo "2235"]
[BlackElo "2221"]
[Annotator "ChessBase"]
[PlyCount "231"]
[EventDate "2021.03.17"]
[EventType "tourn"]
[EventCountry "USA"]
[SourceTitle "playchess.com"]
[Source "ChessBase"]
[SourceQuality "1"]
[TimeControl "5400+30"]

1. e4 {[%emt 0:00:00]} c5 {[%emt 0:00:00]} 2. c3 {[%emt 0:00:13]} g6 {[%emt 0:00:00]} 3. d4 {[%emt 0:00:04]} cxd4 {[%emt 0:00:00]} 4. cxd4 {[%emt 0:00:05]} d5 {[%emt 0:00:00]} 5. e5 {[%emt 0:00:25]} Bg7 {[%emt 0:00:00]} 6. Nc3 {[%emt 0:00:13]} Nc6 {[%emt 0:00:02]} 7. Bb5 {[%emt 0:00:34]} f6 {[%emt 0:00:08]} 8. Nf3 {[%emt 0:01:27]} e6 {[%emt 0:20:33]} 9. Bxc6+ {[%emt 0:26:26]} bxc6 {[%emt 0:00:06]} 10. O-O {[%emt 0:00:45]} Ne7 {[%emt 0:13:58]} 11. exf6 {[%emt 0:08:46]} Bxf6 {[%emt 0:00:06]} 12. Bg5 {[%emt 0:02:26]} O-O {[%emt 0:08:46]} 13. Bxf6 {[%emt 0:02:46]} Rxf6 {[%emt 0:00:06]} 14. Na4 {[%emt 0:01:52]} Ba6 {[%emt 0:25:34]} 15. Re1 {[%emt 0:00:35]} Qf8 {[%emt 0:00:25]} 16. Nc5 {[%emt 0:04:55]} Bc8 {[%emt 0:00:11]} 17. Rc1 {[%emt 0:05:37]} Rb8 {[%emt 0:03:16]} 18. b3 {[%emt 0:05:25]} Nf5 {[%emt 0:01:15]} 19. Ne5 {[%emt 0:01:10]} Qd6 {[%emt 0:01:18]} 20. Qd2 {[%emt 0:00:59]} a5 {[%emt 0:13:02]} 21. a3 {[%emt 0:05:06]} Ra8 {[%emt 0:00:38]} 22. Re2 {[%emt 0:02:24]} Ba6 {[%emt 0:04:02]} 23. Ree1 {[%emt 0:02:39]} Bc8 {[%emt 0:00:15]} 24. Rc3 {[%emt 0:01:49]} Ra7 {[%emt 0:00:53]} 25. Nxc6 {[%emt 0:03:40]} Rc7 {[%emt 0:04:26]} 26. Ne5 {[%emt 0:03:57]} Rf8 {[%emt 0:01:51]} 27. Rec1 {[%emt 0:00:49]} Qe7 {[%emt 0:00:21]} 28. g3 {[%emt 0:03:25]} Nd6 {[%emt 0:00:32]} 29. a4 {[%emt 0:01:45]} Bb7 {[%emt 0:01:18]} 30. f3 {[%emt 0:02:41]} Nf7 {[%emt 0:00:42]} 31. Nxf7 {[%emt 0:00:31]} Rxf7 {[%emt 0:00:33]} 32. Re3 {[%emt 0:00:14]} Qf6 {[%emt 0:00:50]} 33. f4 {[%emt 0:03:51]} Bc8 {[%emt 0:00:07]} 34. Re5 {[%emt 0:00:17]} Ra7 {[%emt 0:00:46]} 35. Rce1 {[%emt 0:01:01]} Rfe7 {[%emt 0:00:23]} 36. Qc3 {[%emt 0:00:38]} h6 {[%emt 0:00:29]} 37. Qe3 {[%emt 0:01:26]} Kf7 {[%emt 0:00:37]} 38. h4 {[%emt 0:01:19]} h5 {[%emt 0:00:19]} 39. Rg5 {[%emt 0:00:55]} Bd7 {[%emt 0:00:35]} 40. Qc3 {[%emt 0:00:35]} Be8 {[%emt 0:00:20]} 41. Rge5 {[%emt 0:00:47]} Bd7 {[%emt 0:01:01]} 42. Kh2 {[%emt 0:00:35]} Bc8 {[%emt 0:00:17]} 43. R1e2 {[%emt 0:00:48]} Bd7 {[%emt 0:00:05]} 44. Qd2 {[%emt 0:00:48]} Bc8 {[%emt 0:00:14]} 45. Re1 {[%emt 0:00:51]} Bd7 {[%emt 0:00:09]} 46. Rc1 {[%emt 0:00:24]} Be8 {[%emt 0:00:22]} 47. Rg5 {[%emt 0:00:29]} Rec7 {[%emt 0:01:41]} 48. Rc3 {[%emt 0:00:40]} Kf8 {[%emt 0:00:30]} 49. Qe1 {[%emt 0:00:34]} Bf7 {[%emt 0:00:12]} 50. Re5 {[%emt 0:00:17]} Kg7 {[%emt 0:01:46]} 51. Qe3 {[%emt 0:01:50]} Rc6 {[%emt 0:00:00]} 52. Rc1 {[%emt 0:00:49]} Rb6 {[%emt 0:00:00]} 53. Rc3 {[%emt 0:00:27]} Re7 {[%emt 0:00:24]} 54. Kg2 {[%emt 0:00:19]} Ra7 {[%emt 0:00:32]} 55. Rg5 {[%emt 0:01:30]} Rb4 {[%emt 0:00:17]} 56. Re5 {[%emt 0:00:43]} Rb6 {[%emt 0:00:05]} 57. Qe1 {[%emt 0:00:40]} Rb4 {[%emt 0:00:59]} 58. Rd3 {[%emt 0:01:45]} Rb6 {[%emt 0:01:43]} 59. Rd2 {[%emt 0:00:21]} Bg8 {[%emt 0:00:00]} 60. Rde2 {[%emt 0:00:25]} Bf7 {[%emt 0:00:00]} 61. Qd2 {[%emt 0:00:59]} Rb4 {[%emt 0:00:43]} 62. Qd3 {[%emt 0:00:27]} Rb6 {[%emt 0:00:18]} 63. Rb2 {[%emt 0:00:35]} Rb4 {[%emt 0:00:39]} 64. Rc2 {[%emt 0:01:12]} Rb6 {[%emt 0:00:08]} 65. Rc3 {[%emt 0:00:00]} Rb4 {[%emt 0:00:15]} 66. Qe3 {[%emt 0:00:00]} Rb6 {[%emt 0:00:08]} 67. Rg5 {[%emt 0:00:00]} Rb4 {[%emt 0:00:16]} 68. Rd3 {[%emt 0:00:44]} Rb6 {[%emt 0:00:22]} 69. Qe5 {[%emt 0:00:49]} Rb4 {[%emt 0:01:45]} 70. Kf2 {[%emt 0:00:45]} Rb6 {[%emt 0:00:33]} 71. Ke2 {[%emt 0:00:22]} Rb4 {[%emt 0:00:24]} 72. Kd2 {[%emt 0:00:07]} Rb6 {[%emt 0:00:07]} 73. Kc2 {[%emt 0:00:36]} Rb4 {[%emt 0:00:05]} 74. Kb2 {[%emt 0:00:15]} Rb6 {[%emt 0:00:06]} 75. Ka3 {[%emt 0:00:33]} Rb4 {[%emt 0:00:10]} 76. Qxf6+ {[%emt 0:00:08]} Kxf6 {[%emt 0:00:04]} 77. Re5 {[%emt 0:00:05]} Rb6 {[%emt 0:00:29]} 78. Rde3 {[%emt 0:00:56]} Re7 {[%emt 0:00:42]} 79. Rd3 {[%emt 0:00:36]} Ra7 {[%emt 0:00:05]} 80. Ree3 {[%emt 0:00:52]} Rb4 {[%emt 0:00:22]} 81. Rd2 {[%emt 0:00:21]} Re7 {[%emt 0:01:14]} 82. Kb2 {[%emt 0:00:34]} Ra7 {[%emt 0:00:21]} 83. Kc3 {[%emt 0:00:19]} Rc7 {[%emt 0:00:11]} 84. Kc2 {[%emt 0:00:41]} Ra7 {[%emt 0:00:18]} 85. Rc3 {[%emt 0:01:01]} Ke7 {[%emt 0:02:38]} 86. Kd3 {[%emt 0:00:25]} Kf6 {[%emt 0:00:23]} 87. Ke3 {[%emt 0:00:10]} Ke7 {[%emt 0:00:26]} 88. Nd3 {[%emt 0:00:15]} Rb6 {[%emt 0:00:10]} 89. Ne5 {[%emt 0:00:12]} Be8 {[%emt 0:00:22]} 90. Rdd3 {[%emt 0:01:30]} Rab7 {[%emt 0:00:33]} 91. Kd2 {[%emt 0:00:20]} Rb8 {[%emt 0:01:29]} 92. Kc2 {[%emt 0:00:14]} Kd6 {[%emt 0:00:33]} 93. Rc5 {[%emt 0:00:25]} Ra8 {[%emt 0:00:37]} 94. Rdc3 {[%emt 0:00:29]} Rb4 {[%emt 0:00:23]} 95. Rc8 {[%emt 0:00:58]} Rxc8 {[%emt 0:00:38]} 96. Rxc8 {[%emt 0:00:03]} Bxa4 {[%emt 0:00:23]} 97. bxa4 {[%emt 0:00:18]} Rxa4 {[%emt 0:00:07]} 98. Rc6+ {[%emt 0:00:53]} Ke7 {[%emt 0:00:02]} 99. Rc7+ {[%emt 0:00:05]} Ke8 {[%emt 0:00:07]} 100. Rg7 {[%emt 0:00:32]} Rxd4 {[%emt 0:00:17]} 101. Rg8+ {[%emt 0:00:18]} Ke7 {[%emt 0:00:12]} 102. Nc6+ {[%emt 0:00:11]} Kf7 {[%emt 0:00:06]} 103. Nxd4 {[%emt 0:00:06]} Kxg8 {[%emt 0:00:04]} 104. Nxe6 {[%emt 0:00:10]} Kf7 {[%emt 0:00:03]} 105. Nd4 {[%emt 0:00:17]} Ke7 {[%emt 0:00:09]} 106. Kd3 {[%emt 0:02:19]} Kd6 {[%emt 0:00:31]} 107. Kc3 {[%emt 0:00:00]} Kc5 {[%emt 0:00:24]} 108. Nb3+ {[%emt 0:00:06]} Kd6 {[%emt 0:01:07]} 109. Nxa5 {[%emt 0:00:09]} Ke6 {[%emt 0:00:03]} 110. Kd3 {[%emt 0:00:40]} Kf5 {[%emt 0:00:04]} 111. Ke3 {[%emt 0:00:25]} Kg4 {[%emt 0:00:06]} 112. Kf2 {[%emt 0:00:00]} Kh3 {[%emt 0:00:33]} 113. Nb3 {[%emt 0:00:25]} Kh2 {[%emt 0:05:15]} 114. Nd4 {[%emt 0:00:06]} Kh3 {[%emt 0:00:00]} 115. Kf3 {[%emt 0:00:24]} Kh2 {[%emt 0:00:00]} 116. g4 {[%emt 0:00:33]} 1-0

[Event "Charlotte Spring IM Invitational 2021"]
[Site "Charlotte"]
[Date "2021.03.19"]
[Round "4.4"]
[White "Oberoi, Shelev"]
[Black "Griffith, Kyron"]
[Result "1/2-1/2"]
[ECO "B22"]
[WhiteElo "2199"]
[BlackElo "2372"]
[Annotator "NA"]
[PlyCount "130"]
[EventDate "2021.03.17"]
[EventType "tourn"]
[EventCountry "USA"]
[SourceTitle "playchess.com"]
[Source "ChessBase"]
[SourceQuality "1"]
[TimeControl "5400+30"]

1. e4 {[%emt 0:00:00]} c5 {[%emt 0:00:00]} 2. c3 {[%emt 0:00:00]} d5 {[%emt 0:00:00]} 3. exd5 {[%emt 0:00:00]} Qxd5 {[%emt 0:00:04]} 4. Nf3 {[%emt 0:00:00]} Nf6 {[%emt 0:00:05]} 5. d4 {[%emt 0:00:12]} e6 {[%emt 0:00:11]} 6. Na3 {[%emt 0:00:28]} Nc6 {[%emt 0:00:16]} 7. Nb5 {[%emt 0:00:38]} Qd8 {[%emt 0:00:06]} 8. dxc5 {[%emt 0:00:06]} Bxc5 {[%emt 0:00:21]} 9. Qxd8+ {[%emt 0:00:06]} Kxd8 {[%emt 0:00:03]} 10. b4 {[%emt 0:09:49]} Be7 {[%emt 0:01:58]} 11. Bg5 {[%emt 0:06:07]} Bd7 {[%emt 0:10:07]} 12. O-O-O {[%emt 0:08:04]} Rc8 {[%emt 0:32:00]} 13. Kb2 {[%emt 0:01:59]} a6 {[%emt 0:13:45]} 14. Nd6 {[%emt 0:06:08]} Bxd6 {[%emt 0:00:35]} 15. Rxd6 {[%emt 0:00:23]} Ke7 {[%emt 0:00:36]} 16. Rd1 {[%emt 0:01:35]} Rhd8 {[%emt 0:07:55]} 17. Bd3 {[%emt 0:14:36]} h6 {[%emt 0:06:43]} 18. Be3 {[%emt 0:02:22]} Nd5 {[%emt 0:00:03]} 19. Bc5+ {[%emt 0:02:44]} Kf6 {[%emt 0:00:12]} 20. Nd2 {[%emt 0:11:23]} g6 {[%emt 0:02:41]} 21. Nc4 {[%emt 0:09:12]} Be8 {[%emt 0:02:42]} 22. Be4 {[%emt 0:03:45]} Rb8 {[%emt 0:10:01]} 23. Nb6 {[%emt 0:12:24]} Nxb6 {[%emt 0:06:14]} 24. Bxb6 {[%emt 0:00:18]} Rxd1 {[%emt 0:00:03]} 25. Rxd1 {[%emt 0:00:01]} Ke7 {[%emt 0:00:41]} 26. a4 {[%emt 0:02:20]} f5 {[%emt 0:00:32]} 27. Bc2 {[%emt 0:01:24]} Rc8 {[%emt 0:02:19]} 28. Bb3 {[%emt 0:01:00]} g5 {[%emt 0:02:15]} 29. Bc5+ {[%emt 0:00:55]} Kf6 {[%emt 0:00:05]} 30. Rd6 {[%emt 0:00:50]} Bf7 {[%emt 0:00:01]} 31. Rd7 {[%emt 0:00:46]} b5 {[%emt 0:00:17]} 32. a5 {[%emt 0:00:49]} Kg6 {[%emt 0:00:23]} 33. Bb6 {[%emt 0:01:32]} h5 {[%emt 0:00:36]} 34. Rd6 {[%emt 0:01:58]} Kf6 {[%emt 0:00:01]} 35. Bd4+ {[%emt 0:00:23]} Ke7 {[%emt 0:00:59]} 36. Bc5 {[%emt 0:00:15]} Kf6 {[%emt 0:00:02]} 37. Bd5 {[%emt 0:00:52]} Nxa5 {[%emt 0:01:06]} 38. Bd4+ {[%emt 0:00:15]} Ke7 {[%emt 0:00:01]} 39. Rxa6 {[%emt 0:00:12]} Nc4+ {[%emt 0:02:38]} 40. Bxc4 {[%emt 0:00:08]} Rxc4 {[%emt 0:00:14]} 41. Ra7+ {[%emt 0:01:34]} Ke8 {[%emt 0:00:48]} 42. Bc5 {[%emt 0:00:22]} Re4 {[%emt 0:00:26]} 43. Rb7 {[%emt 0:02:32]} e5 {[%emt 0:00:01]} 44. Re7+ {[%emt 0:00:12]} Kf8 {[%emt 0:00:02]} 45. Rxe5+ {[%emt 0:00:10]} Kg7 {[%emt 0:00:02]} 46. Rxf5 {[%emt 0:00:55]} Kg6 {[%emt 0:00:19]} 47. Rf3 {[%emt 0:00:39]} Re2+ {[%emt 0:00:32]} 48. Kc1 {[%emt 0:00:32]} Bd5 {[%emt 0:00:29]} 49. Re3 {[%emt 0:01:00]} Rxe3 {[%emt 0:01:10]} 50. Bxe3 {[%emt 0:00:07]} Bxg2 {[%emt 0:00:03]} 51. c4 {[%emt 0:00:26]} bxc4 {[%emt 0:00:05]} 52. Kc2 {[%emt 0:00:04]} Kf5 {[%emt 0:02:36]} 53. Kc3 {[%emt 0:00:38]} Bd5 {[%emt 0:00:13]} 54. Kd4 {[%emt 0:00:09]} Be6 {[%emt 0:00:09]} 55. b5 {[%emt 0:00:30]} Bc8 {[%emt 0:01:12]} 56. Kxc4 {[%emt 0:00:38]} Bb7 {[%emt 0:00:25]} 57. Kc5 {[%emt 0:00:33]} g4 {[%emt 0:00:08]} 58. Kd6 {[%emt 0:00:59]} Ke4 {[%emt 0:00:26]} 59. Bg5 {[%emt 0:00:48]} Kf3 {[%emt 0:00:07]} 60. Bh4 {[%emt 0:00:31]} Kg2 {[%emt 0:00:01]} 61. Bg3 {[%emt 0:00:30]} Kh3 {[%emt 0:00:01]} 62. b6 {[%emt 0:00:34]} h4 {[%emt 0:00:20]} 63. Bf4 {[%emt 0:00:17]} Kg2 {[%emt 0:00:06]} 64. Bg5 {[%emt 0:00:16]} Kh3 {[%emt 0:00:12]} 65. Ke5 {[%emt 0:00:52]} g3 {[%emt 0:00:38]} 1/2-1/2

[Event "Charlotte Spring IM Invitational 2021"]
[Site "Charlotte"]
[Date "2021.03.20"]
[Round "6.4"]
[White "Vijay, Keerthi K."]
[Black "Canty, James"]
[Result "1-0"]
[ECO "B30"]
[WhiteElo "2260"]
[BlackElo "2221"]
[Annotator "NA RC"]
[PlyCount "63"]
[EventDate "2021.03.17"]
[EventType "tourn"]
[EventCountry "USA"]
[SourceTitle "playchess.com"]
[Source "ChessBase"]
[SourceQuality "1"]
[TimeControl "5400+30"]

1. e4 {[%emt 0:05:17]} c5 {[%emt 0:00:00]} 2. Nf3 {[%emt 0:00:10]} Nc6 {[%emt 0:00:00]} 3. b3 {[%emt 0:00:40]} Nf6 {[%emt 0:03:14]} 4. e5 {[%emt 0:00:37]} Nd5 {[%emt 0:00:25]} 5. c4 {[%emt 0:00:31]} Nf4 {[%emt 0:03:06]} 6. g3 {[%emt 0:06:09]} Ng6 {[%emt 0:00:23]} 7. Bb2 {[%emt 0:00:07]} d5 {[%emt 0:03:03]} 8. cxd5 {[%emt 0:07:07]} Qxd5 {[%emt 0:00:16]} 9. Nc3 {[%emt 0:00:02]} Qd8 {[%emt 0:00:42]} 10. Ne4 {[%emt 0:03:32]} Qd5 {[%emt 0:00:20]} 11. Nc3 {[%emt 0:05:59]} Qd8 {[%emt 0:00:02]} 12. Na4 {[%emt 0:01:38]} b6 {[%emt 0:04:27]} 13. Bg2 {[%emt 0:05:28]} Ba6 {[%emt 0:01:16]} 14. d4 {[%emt 0:05:25]} cxd4 {[%emt 0:07:19]} 15. Bxd4 {[%emt 0:00:48]} e6 {[%emt 0:02:18]} 16. a3 {[%emt 0:02:11]} Rc8 {[%emt 0:04:48]} 17. Bb2 {[%emt 0:00:43]} Qc7 {[%emt 0:08:17]} 18. Rc1 {[%emt 0:01:19]} Qb8 {[%emt 0:00:03]} 19. h4 {[%emt 0:20:25]} Be7 {[%emt 0:13:24]} 20. h5 {[%emt 0:00:32]} O-O {[%emt 0:00:08]} 21. hxg6 {[%emt 0:02:36]} Rfd8 {[%emt 0:00:36]} 22. gxf7+ {[%emt 0:01:01]} Kf8 {[%emt 0:00:16]} 23. Nd2 {[%emt 0:13:36]} Nxe5 {[%emt 0:16:32]} 24. Be4 {[%emt 0:00:25]} Bf6 {[%emt 0:05:27]} 25. Rxh7 {[%emt 0:01:21]} Kxf7 {[%emt 0:08:36]} 26. Rxc8 {[%emt 0:00:43]} Rxc8 {[%emt 0:01:30]} 27. Qh5+ {[%emt 0:01:44]} Ke7 {[%emt 0:00:07]} 28. f4 {[%emt 0:00:04]} Qd6 {[%emt 0:06:39]} 29. fxe5 {[%emt 0:00:29]} Rc1+ {[%emt 0:01:30]} 30. Bxc1 {[%emt 0:00:19]} Bxe5 {[%emt 0:00:01]} 31. Qg5+ {[%emt 0:00:21]} Ke8 {[%emt 0:00:52]} 32. Rh8+ {[%emt 0:14:41]} 1-0